bitfinex-derivatives/quotes_SOLF0:USTF0_20260104
["timestamp","ask_amount","ask_price","bid_price","bid_amount"]
[1767531306268,1.97981104,134.32,134.27,6.7058]
[1767531306470,1.97981104,134.32,134.26,1.53080659]
[1767531306666,22.37,134.33,134.25,13.95032666]
[1767531306667,1.97981104,134.3,134.25,8.23732585]
[1767531306866,1.97981104,134.3,134.23,1.53082585]
[1767531307376,1.97981104,134.29,134.23,8.23842585]
[1767531311878,1.97981104,134.29,134.24,1.53182752]
[1767531313778,88.01981104,134.31,134.25,1.53230208]
[1767531313974,0.05609289,134.28,134.25,1.53230208]
[1767531314275,0.05609289,134.28,134.27,0.05377797]
[1767531315272,86.04,134.31,134.27,1.53022036]
[1767531316384,86.04,134.31,134.27,0.05377797]
[1767531316567,88.01981104,134.31,134.27,0.05377797]
[1767531319874,1.97981104,134.31,134.27,0.05377797]
[1767531324874,0.04923549,134.3,134.27,0.05377797]
[1767531336091,0.04923549,134.3,134.27,8.24227751]
[1767531336283,0.04923549,134.3,134.28,1.48279954]
[1767531337394,0.04923549,134.3,134.27,6.75947797]
[1767531337797,0.04923549,134.3,134.27,8.24268295]
[1767531340691,86.06,134.32,134.28,8.18909584]
[1767531341597,86.06,134.32,134.29,6.7048]
[1767531344799,1.97040562,134.33,134.29,6.7048]
[1767531347703,1.97040562,134.33,134.28,8.18909584]
[1767531348297,8.67330562,134.33,134.28,8.18909584]
[1767531348499,8.67330562,134.33,134.28,1.48379584]
[1767531352909,8.67380562,134.32,134.27,6.75957797]
[1767531353107,8.67380562,134.32,134.27,0.05377797]
[1767531360212,8.67380562,134.32,134.27,1.54088752]
[1767531361814,2.00027694,134.31,134.27,0.05377797]
[1767531363414,8.70317694,134.33,134.27,8.24704049]
[1767531363614,8.70317694,134.33,134.27,1.54134049]
[1767531364616,8.70317694,134.33,134.28,6.7053]
[1767531365113,2.00027694,134.32,134.28,6.7053]
[1767531367220,2.00027694,134.32,134.27,8.24714049]
[1767531367612,8.70377694,134.32,134.27,0.05377797]
[1767531367919,2.00027694,134.31,134.27,0.05377797]
[1767531368111,2.05598062,134.31,134.27,0.05377797]
[1767531370924,2.00027694,134.3,134.24,13.95032666]
[1767531371221,2.00027694,134.3,134.24,15.49280108]
[1767531371723,8.70477694,134.3,134.24,22.20020108]
[1767531372022,2.00027694,134.29,134.24,15.49280108]
[1767531372217,2.00027694,134.29,134.26,0.05446331]
[1767531374120,2.05416899,134.29,134.26,0.05446331]
[1767531383737,0.05389205,134.29,134.26,6.76076331]
[1767531384039,2.00027694,134.31,134.26,8.30447504]
[1767531399846,8.70437694,134.31,134.26,0.05446331]
[1767531400154,1.94610356,134.3,134.26,0.05446331]
[1767531401051,0.0486158,134.29,134.26,0.05446331]
[1767531401252,1.94610356,134.3,134.26,0.05446331]
[1767531409256,8.65060356,134.3,134.26,0.05446331]
[1767531409454,1.94610356,134.29,134.26,0.05446331]
[1767531423664,2.04427566,134.3,134.26,0.05446331]
[1767531424667,2.04427566,134.3,134.26,6.76076331]
[1767531427266,8.74887566,134.3,134.26,0.05446331]
[1767531427575,2.04427566,134.29,134.26,0.05446331]
[1767531428979,2.09373361,134.29,134.26,0.05446331]
[1767531451100,0.04945795,134.29,134.26,0.05446331]
[1767531482323,1.91780295,134.34,134.27,1.5479554]
[1767531482819,1.91780295,134.33,134.28,1.54797609]
[1767531483025,1.91780295,134.33,134.27,13.95032666]
[1767531483229,1.91780295,134.33,134.26,15.49830275]
[1767531483516,1.91780295,134.33,134.28,0.05098641]
[1767531484621,1.91780295,134.32,134.28,0.05098641]
[1767531492431,1.91780295,134.32,134.28,6.75618641]
[1767531496636,1.91780295,134.34,134.28,8.30442846]
[1767531497135,0.04929839,134.32,134.28,8.30442846]
[1767531509455,0.04929839,134.32,134.29,6.7048]
[1767531512058,1.91780295,134.34,134.29,8.25547979]
[1767531512449,1.91780295,134.34,134.3,6.7042]
[1767531512650,86.24,134.35,134.3,8.25487979]
[1767531512948,86.24,134.35,134.3,1.55067979]
[1767531513360,86.24,134.35,134.31,0.05202974]
[1767531513660,86.24,134.35,134.31,6.75582974]
[1767531519365,88.13875361,134.35,134.31,6.75582974]
[1767531522558,86.24,134.35,134.31,6.75582974]
[1767531522765,86.24,134.35,134.27,1.60014841]
[1767531522766,1.89875361,134.34,134.27,1.60014841]
[1767531523363,1.89875361,134.34,134.28,6.7049]
[1767531523858,1.89875361,134.34,134.3,0.05034958]
[1767531525066,86.24,134.35,134.3,1.65052302]
[1767531525659,86.24,134.35,134.3,8.35482302]
[1767531527569,88.13875361,134.35,134.3,8.35482302]
[1767531528064,1.89875361,134.34,134.27,13.95032666]
[1767531528270,1.89875361,134.34,134.27,1.99039441]
[1767531529368,1.89875361,134.34,134.29,0.05317957]
[1767531529667,8.60145361,134.34,134.29,0.05317957]
[1767531530468,8.60145361,134.34,134.29,2.04357398]
[1767531530658,1.89875361,134.34,134.29,2.04357398]
[1767531539876,8.60115361,134.34,134.29,2.04357398]
[1767531546179,1.89875361,134.34,134.29,8.74837398]
[1767531547681,1.89875361,134.34,134.3,6.7044]
[1767531559684,86.24,134.35,134.3,8.58559277]
[1767531559891,88.22359605,134.35,134.3,8.58559277]
[1767531565792,1.98359605,134.37,134.31,1.88119277]
[1767531565989,86.28,134.36,134.31,1.88119277]
[1767531567596,86.28,134.36,134.32,6.7033]
[1767531568596,88.26359605,134.36,134.32,6.7033]
[1767531570698,88.26359605,134.36,134.31,8.58499277]
[1767531571298,94.96499605,134.36,134.31,1.88119277]
[1767531571690,1.87767039,134.35,134.3,6.7043]
[1767531572901,88.15767039,134.36,134.31,8.49990712]
[1767531573106,86.28,134.36,134.32,1.79610712]
[1767531573305,1.87767039,134.35,134.3,1.79610712]
[1767531574602,1.87767039,134.35,134.3,8.50040712]
[1767531582600,1.7865329,134.34,134.29,6.7048]
[1767531582806,1.7865329,134.34,134.29,8.59184002]
[1767531596516,6.7019,134.35,134.3,1.88704002]
[1767531598413,8.4884329,134.35,134.3,1.88704002]
[1767531601111,1.75641866,134.34,134.28,15.74238592]
[1767531601317,1.75641866,134.33,134.28,1.79205926]
[1767531602617,1.75641866,134.33,134.28,8.49735926]
[1767531603119,1.75641866,134.33,134.28,22.44768592]
[1767531603419,1.75641866,134.33,134.29,0.05496911]
[1767531603823,0.04935534,134.32,134.29,0.05496911]
[1767531605819,1.805774,134.32,134.26,22.44838592]
[1767531606022,1.805774,134.32,134.26,6.706]
[1767531607315,1.805774,134.32,134.26,8.49805926]
[1767531607518,8.509174,134.32,134.26,8.49805926]
[1767531610421,1.75641866,134.3,134.25,13.95032666]
[1767531610720,1.75641866,134.3,134.23,1.79205926]
[1767531611227,1.75641866,134.3,134.26,0.05422237]
[1767531611725,6.705,134.29,134.26,0.05422237]
[1767531612722,8.46141866,134.29,134.23,8.49985926]
[1767531614719,8.46181866,134.28,134.23,1.79205926]
[1767531615827,88.07641866,134.31,134.23,1.79205926]
[1767531616018,1.75641866,134.3,134.23,1.79205926]
[1767531616627,1.75641866,134.3,134.24,8.49915926]
[1767531618131,1.75641866,134.29,134.23,6.7079]
[1767531618332,1.75641866,134.29,134.23,8.49995926]
[1767531619528,8.46131866,134.29,134.23,8.49995926]
[1767531633441,1.74545406,134.28,134.23,8.49995926]
[1767531633635,1.74545406,134.27,134.21,8.47994977]
[1767531634032,1.74545406,134.27,134.21,1.77154977]
[1767531635533,1.74545406,134.27,134.22,6.7083]
[1767531635937,8.45145406,134.27,134.21,1.77154977]
[1767531636130,8.45145406,134.27,134.21,8.47994977]
[1767531636641,1.74545406,134.26,134.21,8.47994977]
[1767531637738,6.706,134.27,134.22,1.77154977]
[1767531637937,8.45145406,134.27,134.22,1.77154977]
[1767531638137,1.74545406,134.26,134.21,6.7084]
[1767531638340,8.45215406,134.26,134.2,1.77154977]
[1767531638743,8.45255406,134.25,134.2,1.77154977]
[1767531639647,1.74545406,134.23,134.18,1.77154977]
[1767531640243,1.74545406,134.23,134.19,0.05019637]
[1767531641748,8.45395406,134.22,134.19,0.05019637]
[1767531641954,86.4,134.21,134.16,1.77154977]
[1767531644546,1.74545406,134.25,134.17,1.77154977]
[1767531644758,86.4,134.24,134.17,1.77154977]
[1767531645148,1.74545406,134.23,134.17,1.77154977]
[1767531646053,1.74545406,134.23,134.18,6.7103]
[1767531646856,1.74545406,134.23,134.18,8.48184977]
[1767531659369,8.45345406,134.23,134.18,1.77154977]
[1767531660769,1.81783097,134.22,134.16,8.42648974]
[1767531661071,8.52633097,134.22,134.16,8.42648974]
[1767531662263,1.81783097,134.21,134.16,1.71558974]
[1767531662462,8.52673097,134.21,134.16,1.71558974]
[1767531668274,1.81783097,134.21,134.16,8.42688974]
[1767531670676,1.81783097,134.21,134.17,6.7108]
[1767531671676,88.27783097,134.21,134.17,6.7108]
[1767531672678,88.27783097,134.21,134.16,1.71558974]
[1767531676580,88.27783097,134.21,134.17,6.7107]
[1767531680182,88.27783097,134.21,134.16,8.42688974]
[1767531680383,86.46,134.21,134.17,1.71558974]
[1767531681082,88.27783097,134.21,134.15,1.71558974]
[1767531682283,88.27783097,134.21,134.16,8.42678974]
[1767531682579,1.81783097,134.2,134.14,1.71558974]
[1767531683684,1.81783097,134.2,134.15,6.7118]
[1767531684584,1.81783097,134.2,134.15,8.42738974]
[1767531685680,1.81783097,134.2,134.19,5.08813629]
[1767531685985,1.81783097,134.2,134.17,9.3029852]
[1767531687484,8.52733097,134.2,134.17,9.3029852]
[1767531687688,8.52733097,134.2,134.16,9.3029852]
[1767531687874,1.81783097,134.2,134.16,9.3029852]
[1767531688182,1.81783097,134.2,134.15,9.3029852]
[1767531688382,0.19739429,134.18,134.15,9.3029852]
[1767531688685,86.48,134.17,134.15,9.3029852]
[1767531691685,126.72,134.23,134.15,10.96659965]
[1767531691686,6.7093,134.21,134.15,10.96659965]
[1767531691883,6.7093,134.21,134.16,9.3029852]
[1767531691884,86.48,134.2,134.16,9.3029852]
[1767531694886,0.21009333,134.18,134.15,9.3029852]
[1767531695189,86.48,134.17,134.14,9.3029852]
[1767531698291,86.48,134.17,134.13,11.10166891]
[1767531702994,86.48,134.17,134.13,17.81446891]
[1767531703204,6.94508498,134.2,134.14,11.10166891]
[1767531703501,86.5,134.19,134.14,11.10166891]
[1767531703799,86.5,134.19,134.14,17.81396891]
[1767531704899,86.5,134.19,134.15,9.3029852]
[1767531706698,0.23528498,134.2,134.15,17.81326891]
[1767531706892,86.5,134.2,134.17,9.3029852]
[1767531708103,86.5,134.21,134.18,9.3029852]
[1767531708299,86.5,134.21,134.19,9.3029852]
[1767531714501,86.5,134.21,134.18,9.3029852]
[1767531715806,0.27156632,134.2,134.17,9.3029852]
[1767531716505,0.27156632,134.2,134.16,9.3029852]
[1767531718503,0.27668011,134.19,134.16,9.3029852]
[1767531718709,0.27668011,134.19,134.15,9.3029852]
[1767531721510,86.5,134.2,134.15,17.71082225]
[1767531723312,86.5,134.2,134.16,17.71042225]
[1767531723512,86.5,134.2,134.16,8.40743705]
[1767531724811,0.05696099,134.19,134.16,8.40743705]
[1767531725112,0.05696099,134.19,134.17,0.04767462]
[1767531727708,0.28893115,134.22,134.17,8.45451167]
[1767531727914,86.52,134.21,134.17,8.45451167]
[1767531732522,0.28893115,134.22,134.17,8.45451167]
[1767531732724,86.80893115,134.22,134.17,8.45451167]
[1767531733117,6.7079,134.23,134.17,8.45451167]
[1767531733118,22.37,134.27,134.18,1.69603705]
[1767531733316,86.8359908,134.26,134.2,1.69603705]
[1767531733624,86.8359908,134.26,134.2,8.40533705]
[1767531733819,86.8359908,134.26,134.22,0.05329107]
[1767531738220,0.32620438,134.25,134.22,0.05329107]
[1767531738421,0.32620438,134.25,134.18,10.99902225]
[1767531738618,0.32620438,134.25,134.18,1.69603705]
[1767531739524,6.98228618,134.24,134.18,8.40623705]
[1767531739725,86.77683639,134.23,134.16,1.69603705]
[1767531740527,86.77683639,134.23,134.17,6.7109]
[1767531740726,86.77683639,134.23,134.17,1.69603705]
[1767531741728,86.77683639,134.23,134.19,6.7098]
[1767531742425,0.28066986,134.25,134.19,8.40583705]
[1767531742630,86.78066986,134.25,134.2,6.7092]
[1767531745626,0.28066986,134.25,134.2,6.7092]
[1767531745834,86.80066986,134.25,134.2,6.7092]
[1767531747631,0.28969154,134.27,134.21,6.7087]
[1767531747933,86.52,134.25,134.21,6.7087]
[1767531749734,0.05573401,134.24,134.21,6.7087]
[1767531750938,0.05573401,134.24,134.21,6.75560263]
[1767531751234,86.52,134.25,134.21,6.75560263]
[1767531751434,0.29562779,134.29,134.23,1.73418572]
[1767531751630,86.52,134.28,134.23,1.73418572]
[1767531752430,86.52,134.28,134.24,0.04975626]
[1767531752932,0.29887928,134.27,134.21,1.73418572]
[1767531754538,0.29887928,134.27,134.21,8.44268572]
[1767531754836,0.29887928,134.27,134.21,1.73418572]
[1767531755437,0.05140997,134.25,134.23,0.05648654]
[1767531759735,0.31230545,134.25,134.2,6.7089]
[1767531760742,0.20584672,134.23,134.15,1.70287629]
[1767531761440,0.05309021,134.2,134.15,1.70287629]
[1767531761641,0.05309021,134.2,134.16,8.41387629]
[1767531762743,0.05309021,134.2,134.17,6.7108]
[1767531762949,0.20584672,134.23,134.17,1.70287629]
[1767531763448,0.20584672,134.23,134.18,6.7103]
[1767531767146,0.21436329,134.25,134.19,8.41267629]
[1767531767349,86.52,134.24,134.19,8.41267629]
[1767531768046,0.21580246,134.23,134.17,8.41337629]
[1767531769148,0.04733527,134.21,134.17,8.41337629]
[1767531769449,0.04733527,134.21,134.19,0.0479432]
[1767531775047,86.52,134.24,134.19,8.46061949]
[1767531775251,86.54,134.24,134.19,8.46061949]
[1767531777349,6.98373256,134.25,134.19,8.46061949]
[1767531777550,93.52373256,134.25,134.19,8.46061949]
[1767531783259,93.52373256,134.25,134.2,6.7094]
[1767531784857,0.05152875,134.24,134.2,6.7094]
[1767531785058,0.33951781,134.24,134.2,6.7094]
[1767531786772,0.33951781,134.24,134.19,8.46061949]
[1767531788762,0.33951781,134.24,134.19,6.7577432]
[1767531788964,7.04721781,134.24,134.19,0.0479432]
[1767531789866,0.33951781,134.24,134.19,0.0479432]
[1767531791566,0.33951781,134.24,134.19,6.7577432]
[1767531796768,0.05152875,134.24,134.2,1.8614475]
[1767531797266,86.86115575,134.27,134.2,1.8614475]
[1767531798575,93.56705575,134.27,134.22,0.05247447]
[1767531800674,93.56705575,134.27,134.22,1.91392197]
[1767531802079,0.04718506,134.26,134.22,1.91392197]
[1767531803979,0.35521942,134.26,134.22,0.05247447]
[1767531804672,0.35521942,134.26,134.2,1.8614475]
[1767531804974,0.35521942,134.26,134.16,1.8614475]
[1767531805475,0.30803436,134.26,134.16,1.8614475]
[1767531805678,6.7074,134.24,134.19,1.8614475]
[1767531805977,6.7074,134.24,134.2,0.05071008]
[1767531807479,7.01771626,134.25,134.2,0.05071008]
[1767531808680,0.04855734,134.24,134.2,0.05071008]
[1767531810794,0.04855734,134.24,134.2,1.83175296]
[1767531812194,93.58282706,134.27,134.22,1.78104288]
[1767531813495,93.58282706,134.27,134.23,0.05064234]
[1767531820905,93.2659,134.27,134.23,1.88495991]
[1767531821705,93.2659,134.27,134.23,0.05064234]
[1767531821907,93.59114624,134.27,134.23,0.05064234]
[1767531826105,0.32817367,134.26,134.23,0.05064234]
[1767531845537,0.32817367,134.26,134.2,6.7094]
[1767531846539,0.32817367,134.26,134.2,8.55878028]
[1767531846736,0.32817367,134.26,134.22,0.04686552]
[1767531857636,7.03457367,134.26,134.22,0.04686552]
[1767531870554,0.32817367,134.26,134.22,0.04686552]
[1767531870852,86.6,134.26,134.22,1.816692]
[1767531871551,86.6,134.26,134.22,8.525092]
[1767531872352,7.00839964,134.28,134.22,8.525092]
[1767531872548,86.90372339,134.27,134.22,8.525092]
[1767531874351,86.90372339,134.27,134.22,1.816692]
[1767531879163,86.90372339,134.27,134.22,8.524892]
[1767531879659,17.46276716,134.32,134.25,8.49170261]
[1767531879854,86.6,134.31,134.25,8.49170261]
[1767531880457,86.6,134.31,134.27,0.05578641]
[1767531880658,24.16656716,134.32,134.27,0.05578641]
[1767531880860,86.6,134.31,134.27,0.05578641]
[1767531882460,93.3039,134.31,134.27,0.05578641]
[1767531885155,86.6,134.31,134.27,0.05578641]
[1767531889167,0.05637587,134.3,134.23,6.7075]
[1767531889460,0.05637587,134.3,134.24,1.78490261]
[1767531889856,86.6,134.31,134.24,1.78490261]
[1767531890566,6.7044,134.3,134.24,8.49220261]
[1767531891362,6.7044,134.3,134.24,1.78490261]
[1767531891562,6.7054,134.28,134.22,6.7079]
[1767531891761,86.6,134.27,134.22,6.7079]
[1767531893766,86.6,134.27,134.21,8.49380261]
[1767531895758,6.7054,134.28,134.21,8.49380261]
[1767531895955,86.6,134.27,134.21,8.49380261]
[1767531900873,86.6,134.27,134.22,6.7082]
[1767531901168,86.6,134.27,134.23,1.83852728]
[1767531902173,86.6,134.27,134.21,1.83852728]
[1767531903072,86.6,134.27,134.19,1.83852728]
[1767531903576,86.6,134.27,134.21,6.7088]
[1767531904465,0.04767266,134.25,134.21,6.7088]
[1767531905672,0.04767266,134.25,134.2,6.7093]
[1767531914676,0.04767266,134.25,134.19,1.83852728]
[1767531914882,0.04767266,134.25,134.15,13.96245512]
[1767531915078,0.04767266,134.25,134.16,1.83852728]
[1767531915278,126.6936,134.26,134.16,1.83852728]
[1767531915473,6.7083,134.23,134.16,8.54942728]
[1767531915674,6.7083,134.23,134.17,1.83852728]
[1767531916086,0.05373268,134.21,134.15,20.67435512]
[1767531916282,0.05373268,134.21,134.13,163.60640984]
[1767531917085,0.05373268,134.21,134.14,1.83852728]
[1767531917086,6.7095,134.2,134.14,1.83852728]
[1767531917792,0.05373268,134.21,134.08,122.38425022]
[1767531917793,0.05373268,134.21,134.12,1.83852728]
[1767531918282,6.7104,134.18,134.12,8.55192728]
[1767531918488,93.39996206,134.18,134.12,8.55192728]
[1767531919487,86.68956206,134.18,134.12,8.55192728]
[1767531920393,86.68956206,134.18,134.12,1.83852728]
[1767531922490,86.68956206,134.18,134.11,6.7138]
[1767531922694,86.68956206,134.18,134.1,1.83852728]
[1767531922998,109.05956206,134.18,134.08,23.3921775]
[1767531923195,109.05956206,134.18,134.08,30.1074775]
[1767531923396,213.3972,134.18,134.08,30.1074775]
[1767531923895,0.0526112,134.14,134.08,30.1074775]
[1767531924098,86.7126112,134.14,134.08,30.1074775]
[1767531924695,86.7126112,134.14,134.08,23.3921775]
[1767531925199,93.4251112,134.14,134.08,23.3921775]
[1767531926193,6.713,134.13,134.08,21.55365022]
[1767531926390,109.0826112,134.14,134.08,21.55365022]
[1767531927390,6.7136,134.12,134.08,21.55365022]
[1767531927992,6.7135,134.12,134.08,19.40568029]
[1767531930299,109.0826112,134.14,134.08,21.32169321]
[1767531930300,0.0526112,134.14,134.08,21.32169321]
[1767531930602,86.7526112,134.14,134.09,1.91601292]
[1767531931698,86.7526112,134.14,134.09,8.63081292]
[1767531932603,86.7526112,134.14,134.09,1.91601292]
[1767531936102,86.7526112,134.14,134.09,8.63061292]
[1767531936497,86.7526112,134.14,134.09,1.91601292]
[1767531937000,86.7526112,134.14,134.1,8.48845879]
[1767531937996,104.3734,134.2,134.11,8.48805879]
[1767531937997,22.37,134.2,134.11,8.48805879]
[1767531938302,86.72,134.19,134.11,8.48805879]
[1767531938600,86.72,134.19,134.12,1.77425879]
[1767531938802,104.3492,134.23,134.13,1.77425879]
[1767531939006,109.09,134.22,134.13,1.77425879]
[1767531939596,6.7094,134.2,134.13,1.77425879]
[1767531939897,109.09,134.22,134.13,1.77425879]
[1767531941803,6.7101,134.19,134.13,1.77425879]
[1767531942200,6.7094,134.21,134.13,1.77425879]
[1767531942398,6.7094,134.21,134.13,8.48695879]
[1767531943004,6.7094,134.2,134.13,8.48695879]
[1767531944497,6.7094,134.2,134.14,6.7123]
[1767531944696,6.7089,134.21,134.14,8.48655879]
[1767531945801,6.7095,134.2,134.14,8.48655879]
[1767531947906,93.4288,134.22,134.15,8.48595879]
[1767531948408,6.7089,134.21,134.15,8.48595879]
[1767531953100,6.7094,134.2,134.15,1.77425879]
[1767531954111,6.7099,134.19,134.11,1.77425879]
[1767531955614,6.7099,134.19,134.13,8.48715879]
[1767531961418,6.7099,134.19,134.14,6.7123]
[1767531961621,86.72,134.22,134.14,1.84712746]
[1767531961917,104.3018,134.29,134.15,1.84712746]
[1767531961918,117.7228,134.28,134.15,1.84712746]
[1767531962219,86.72,134.26,134.15,1.84712746]
[1767531962518,104.2944,134.3,134.2,1.84712746]
[1767531962724,22.37,134.28,134.2,1.84712746]
[1767531962915,22.37,134.28,134.16,1.84712746]
[1767531963214,6.7064,134.26,134.19,8.55682746]
[1767531967322,6.7064,134.26,134.2,1.84712746]
[1767531969728,6.7057,134.28,134.21,1.84712746]
[1767531970230,0.05096442,134.24,134.21,1.84712746]
[1767531970823,86.7,134.32,134.23,1.84712746]
[1767531971623,86.7,134.32,134.24,8.55412746]
[1767531971624,6.704,134.31,134.24,8.55412746]
[1767531974333,22.37,134.29,134.22,1.84712746]
[1767531974724,22.37,134.29,134.19,1.84712746]
[1767531974927,22.37,134.29,134.2,1.84712746]
[1767531975836,6.7064,134.26,134.2,1.84712746]
[1767531976032,93.3864,134.26,134.2,1.84712746]
[1767531982335,6.7069,134.25,134.2,1.84712746]
[1767531987331,93.3864,134.26,134.2,1.84712746]
[1767531987536,86.68,134.26,134.2,8.55622746]
[1767531990532,93.3866,134.26,134.2,8.55622746]
[1767531992342,86.7,134.28,134.21,8.47992499]
[1767531993548,93.4054,134.28,134.21,8.47992499]
[1767531993742,86.7,134.28,134.21,8.47992499]
[1767531994556,6.7059,134.27,134.21,8.47992499]
[1767531996846,6.7064,134.26,134.21,1.77112499]
[1767531997856,6.7064,134.26,134.2,6.7093]
[1767531999162,6.7064,134.26,134.2,8.3601248]
[1767532000257,115.7759,134.28,134.21,6.7089]
[1767532000654,109.07,134.28,134.21,6.7089]
[1767532001568,6.7061,134.27,134.21,6.7089]
[1767532001761,6.7061,134.27,134.21,8.3597248]
[1767532001960,93.4061,134.27,134.21,8.3597248]
[1767532005465,86.7,134.27,134.22,8.3592248]
[1767532007663,86.7,134.27,134.23,1.6508248]
[1767532008566,86.7,134.27,134.23,8.3586248]
[1767532010463,86.7,134.27,134.23,1.6508248]
[1767532010671,86.7,134.27,134.21,8.3592248]
[1767532010859,86.7,134.27,134.21,1.6508248]
[1767532012665,86.7,134.27,134.22,8.3588248]
[1767532013368,86.7,134.3,134.24,1.6508248]
[1767532013566,86.7,134.3,134.21,1.6508248]
[1767532014369,6.7054,134.28,134.21,8.3592248]
[1767532014972,6.7054,134.28,134.22,8.3591248]
[1767532017169,6.7059,134.27,134.2,1.59341462]
[1767532018671,6.7059,134.27,134.21,6.7089]
[1767532018978,109.07,134.3,134.2,1.59341462]
[1767532018979,6.7064,134.26,134.2,1.59341462]
[1767532019169,6.7064,134.26,134.18,1.59341462]
[1767532019369,93.4064,134.26,134.2,6.7093]
[1767532022978,86.7,134.26,134.2,6.7093]
[1767532023784,86.7,134.26,134.21,1.67587363]
[1767532023975,86.7,134.26,134.21,8.38467363]
[1767532024878,22.37,134.32,134.22,1.67587363]
[1767532025077,86.72,134.31,134.22,1.67587363]
[1767532026579,6.7048,134.3,134.23,6.7074]
[1767532027277,6.7048,134.3,134.23,8.38327363]
[1767532027676,6.7048,134.3,134.24,6.7073]
[1767532027876,86.72,134.31,134.24,6.7073]
[1767532028274,86.72,134.31,134.24,8.38317363]
[1767532028779,93.424,134.31,134.24,8.38317363]
[1767532029182,6.7044,134.3,134.24,8.38317363]
[1767532029575,86.72,134.31,134.24,1.67587363]
[1767532029779,93.4224,134.34,134.24,1.67587363]
[1767532030180,93.4224,134.34,134.27,6.7058]
[1767532030475,86.72,134.34,134.26,0.05013297]
[1767532030670,86.72,134.34,134.24,1.67587363]
[1767532030867,109.09,134.34,134.24,1.67587363]
[1767532031071,109.09,134.34,134.29,0.04833922]
[1767532031681,6.7035,134.32,134.29,0.04833922]
[1767532031981,6.7035,134.32,134.25,6.7064]
[1767532033083,213.3533,134.34,134.23,6.7074]
[1767532033284,132.407769,134.33,134.23,6.7074]
[1767532033586,126.6386,134.33,134.23,6.7074]
[1767532034586,6.7044,134.3,134.23,6.7074]
[1767532034777,93.4044,134.3,134.23,6.7074]
[1767532036599,0.05045583,134.28,134.23,6.7074]
[1767532037487,0.05045583,134.28,134.24,0.04888398]
[1767532037880,0.05045583,134.28,134.24,6.75618398]
[1767532039087,0.00211661,134.28,134.25,8.38257363]
[1767532040186,0.00211661,134.28,134.26,6.7062]
[1767532040389,86.7,134.33,134.26,6.7062]
[1767532041576,93.403,134.33,134.28,0.0471955]
[1767532042493,6.7035,134.32,134.28,0.0471955]
[1767532042689,110.55,134.33,134.24,6.7069]
[1767532042993,109.07,134.33,134.24,6.7069]
[1767532043194,6.7039,134.31,134.24,6.7069]
[1767532047495,6.7039,134.31,134.24,8.38277363]
[1767532048491,6.7034,134.32,134.24,1.67587363]
[1767532048687,86.7,134.33,134.24,1.67587363]
[1767532049692,86.7,134.33,134.28,6.7053]
[1767532053998,86.7,134.33,134.29,6.7048]
[1767532056999,86.7,134.33,134.3,6.7043]
[1767532057202,6.7014,134.36,134.3,8.28351357]
[1767532057401,86.7,134.35,134.3,8.28351357]
[1767532062202,86.7,134.35,134.3,6.7043]
[1767532072314,86.7,134.35,134.29,8.28401357]
[1767532072513,93.4019,134.35,134.29,8.28401357]
[1767532078119,0.04702352,134.33,134.29,8.28401357]
[1767532079623,0.04702352,134.33,134.3,6.7044]
[1767532080721,0.04702352,134.33,134.29,8.28401357]
[1767532081123,0.04702352,134.33,134.3,6.7044]
[1767532081621,0.04702352,134.33,134.29,1.57921357]
[1767532081822,0.04702352,134.33,134.26,1.52948865]
[1767532082721,6.74992352,134.33,134.26,1.52948865]
[1767532083526,6.74992352,134.33,134.28,6.7054]
[1767532084220,6.74992352,134.33,134.26,8.23538865]
[1767532084421,6.7034,134.32,134.24,157.61787431]
[1767532084617,86.7,134.31,134.24,157.61787431]
[1767532085026,6.7044,134.3,134.24,157.61787431]
[1767532085931,0.05188463,134.28,134.24,157.61787431]
[1767532086621,0.05188463,134.28,134.24,8.23668865]
[1767532090927,0.05188463,134.28,134.25,0.0535034]
[1767532091520,0.05188463,134.28,134.21,1.52948865]
[1767532092631,6.75728463,134.28,134.21,8.23828865]
[1767532095936,6.75728463,134.28,134.21,6.7088]
[1767532098940,6.706,134.27,134.2,1.52948865]
[1767532100639,6.706,134.27,134.21,1.52948865]
[1767532102538,6.706,134.27,134.21,8.23828865]
[1767532104538,6.706,134.27,134.22,1.52948865]
[1767532112543,6.7053,134.29,134.22,1.52948865]
[1767532114851,6.7054,134.28,134.22,1.52948865]
[1767532118554,6.7054,134.28,134.22,8.23788865]
[1767532123059,126.664,134.3,134.2,1.6103737]
[1767532123662,6.7063,134.27,134.2,8.3197737]
[1767532124561,22.37,134.3,134.22,1.6103737]